bitfinex/quotes_SOLUSD_20260201
["timestamp","ask_amount","ask_price","bid_price","bid_amount"]
[1769911504511,7.40535457,104.97,104.94,4.36227138]
[1769911505730,7.40535457,104.97,104.94,13.89138296]
[1769911505935,3.91333361,104.97,104.94,13.89138296]
[1769911508633,16.93201,104.97,104.94,4.36227138]
[1769911509332,7.40535457,104.97,104.94,4.36227138]
[1769911511235,3.91333361,104.97,104.94,4.36227138]
[1769911511435,16.93044725,104.99,104.95,4.34758033]
[1769911512535,16.93044725,104.99,104.95,9.52817187]
[1769911512715,1e-08,104.99,104.96,4.34758033]
[1769911512916,3.49202097,104.99,104.96,4.34758033]
[1769911513229,3.37084021,104.99,104.96,4.34758033]
[1769911513934,5.07743874,105.0,104.97,4.48023568]
[1769911514131,9.62139662,105.03,104.99,4.34758033]
[1769911515137,13.96264557,105.03,104.99,13.87189506]
[1769911515339,4.44124895,105.03,105.0,4.34758033]
[1769911515522,0.1,105.03,105.0,4.34758033]
[1769911515722,7.93326991,105.06,105.02,4.34758033]
[1769911515931,4.44124895,105.06,105.02,4.34758033]
[1769911516840,4.44124895,105.06,105.03,4.34758033]
[1769911517566,4.44124895,105.06,105.01,4.34758033]
[1769911517567,7.83326991,105.04,105.01,4.34758033]
[1769911517731,7.83326991,105.03,104.99,4.34758033]
[1769911517930,7.83326991,105.01,104.98,30.80758033]
[1769911518125,7.83326991,105.0,104.98,26.46]
[1769911518632,7.83326991,105.0,104.97,4.34758033]
[1769911519239,7.83326991,105.0,104.97,13.8740653]
[1769911519927,4.34124895,105.01,104.98,4.34758033]
[1769911520126,17.35639359,105.01,104.98,4.34758033]
[1769911521044,7.83326991,105.01,104.98,4.34758033]
[1769911521745,7.83326991,105.01,104.98,13.87292745]
[1769911522049,17.3556463,105.02,104.99,4.34758033]
[1769911523429,13.01347974,105.03,104.99,4.34758033]
[1769911523630,7.83326991,105.05,105.0,4.34758033]
[1769911523940,7.83326991,105.05,105.01,4.34758033]
[1769911524458,7.83326991,105.04,105.01,4.34758033]
[1769911525442,4.34124895,105.04,105.01,4.34758033]
[1769911528151,4.25998219,105.05,105.02,4.34758033]
[1769911529056,13.77928941,105.05,105.02,4.34758033]
[1769911529929,4.34124895,105.04,105.02,9.52195989]
[1769911530130,4.44124895,105.06,105.03,4.34758033]
[1769911535953,4.34124895,105.03,105.02,61.2]
[1769911536454,7.83326991,105.04,105.02,61.2]
[1769911538353,7.83326991,105.04,105.02,65.44829639]
[1769911538739,7.83326991,105.04,105.02,4.24829639]
[1769911539242,17.23630398,105.05,105.02,4.24829639]
[1769911539658,13.01167686,105.05,105.02,4.24829639]
[1769911539953,17.23630398,105.05,105.02,4.24829639]
[1769911540335,23.89592613,105.06,105.02,4.24829639]
[1769911540336,13.11055743,105.06,105.03,4.24829639]
[1769911540564,0.1,105.06,105.03,4.24829639]
[1769911541048,0.1,105.06,105.04,4.24829639]
[1769911541353,10.15334098,105.07,105.04,4.24829639]
[1769911542453,4.26462601,105.06,105.02,30.94832761]
[1769911542748,4.26462601,105.04,105.01,14.01078224]
[1769911543750,3.49202096,105.05,105.02,4.48832761]
[1769911543955,7.75664697,105.06,105.02,4.48832761]
[1769911544156,4.26462601,105.06,105.02,4.48832761]
[1769911544350,10.19333987,105.07,105.03,4.48832761]
[1769911544664,19.71095735,105.07,105.03,4.48832761]
[1769911544849,23.20297831,105.07,105.03,4.48832761]
[1769911545051,4.26462601,105.06,105.03,4.48832761]
[1769911545749,23.20297831,105.07,105.04,4.48832761]
[1769911547764,10.19333987,105.07,105.04,14.00837997]
[1769911548258,13.68536083,105.07,105.04,14.00837997]
[1769911548766,5.92871386,105.07,105.05,4.48832761]
[1769911549446,13.68536083,105.07,105.04,4.48832761]
[1769911552241,23.20286774,105.07,105.04,4.48832761]
[1769911553940,13.68536083,105.07,105.04,4.48832761]
[1769911556945,10.19333987,105.07,105.04,14.00849772]
[1769911559061,5.92871386,105.07,105.05,4.48832761]
[1769911561466,5.92871386,105.07,105.06,4.48832761]
[1769911561769,4.64677756,105.07,105.06,4.48832761]
[1769911565160,3.6761608,105.07,105.06,4.48832761]
[1769911566771,0.1,105.08,105.06,14.00669806]
[1769911566957,0.1,105.09,105.08,4.48832761]
[1769911567968,17.47602274,105.12,105.09,4.14211288]
[1769911568356,20.96131823,105.12,105.09,4.14211288]
[1769911568766,3.58529549,105.15,105.11,4.14211288]
[1769911569276,3.48529549,105.14,105.11,4.14211288]
[1769911569469,3.48529549,105.13,105.11,4.14211288]
[1769911569772,12.99656428,105.14,105.11,4.14211288]
[1769911569981,17.37385145,105.14,105.11,4.14211288]
[1769911570971,4.37728717,105.14,105.11,13.65573171]
[1769911571276,7.96258266,105.15,105.12,4.14211288]
[1769911571480,17.47287581,105.15,105.12,4.14211288]
[1769911571665,4.37728717,105.13,105.1,4.14211288]
[1769911572175,4.37728717,105.12,105.08,4.14211288]
[1769911572373,4.37728717,105.08,105.05,4.14211288]
[1769911572555,3.48529549,105.07,105.03,4.14211288]
[1769911572756,3.48529549,105.07,105.04,4.14211288]
[1769911572955,4.37728717,105.06,105.02,4.14211288]
[1769911573272,7.86258266,105.04,105.01,13.66419337]
[1769911574583,3.48529549,105.04,105.01,13.66419337]
[1769911574878,3.48529549,105.04,105.02,4.14211288]
[1769911575682,17.38227326,105.05,105.02,4.14211288]
[1769911575984,4.37728717,105.05,105.02,4.14211288]
[1769911576282,17.3813174,105.06,105.03,4.14211288]
[1769911576779,7.86258266,105.06,105.03,4.14211288]
[1769911577180,4.37728717,105.06,105.03,4.14211288]
[1769911577381,17.3803327,105.07,105.03,4.14211288]
[1769911580777,7.86258266,105.07,105.04,4.14211288]
[1769911580978,3.48529549,105.06,105.04,4.14211288]
[1769911581690,17.38012529,105.07,105.04,4.14211288]
[1769911584681,7.86258266,105.07,105.04,4.14211288]
[1769911584980,3.48529549,105.09,105.05,4.14211288]
[1769911585283,7.86258266,105.11,105.06,4.14211288]
[1769911585778,3.48529549,105.1,105.07,4.14211288]
[1769911587280,3.48529549,105.1,105.07,13.65924433]
[1769911587663,7.86258266,105.08,105.05,4.14211288]
[1769911587870,3.48529549,105.07,105.04,4.14211288]
[1769911588577,3.48529549,105.07,105.04,13.66179548]
[1769911588779,3.48529549,105.07,105.05,4.14211288]
[1769911588982,7.86258266,105.08,105.05,4.14211288]
[1769911589282,3.48529549,105.08,105.05,4.14211288]
[1769911589486,3.48529549,105.08,105.05,13.66127336]
[1769911589780,17.3784489,105.09,105.06,4.14211288]
[1769911590982,7.86258266,105.09,105.06,4.14211288]
[1769911592667,7.86258266,105.09,105.05,13.66127336]
[1769911595279,7.86258266,105.09,105.06,4.14211288]
[1769911595682,17.37897903,105.09,105.06,4.14211288]
[1769911596765,4.37728717,105.1,105.07,4.14211288]
[1769911596987,3.48529549,105.12,105.07,4.14211288]
[1769911597281,7.96064594,105.12,105.07,4.14211288]
[1769911598484,7.96064594,105.12,105.08,13.7629357]
[1769911598884,7.96064594,105.12,105.08,9.51655881]
[1769911599085,7.96064594,105.12,105.09,4.24637689]
[1769911599670,4.47535045,105.12,105.09,4.24637689]
[1769911599871,4.47535045,105.14,105.09,4.24637689]
[1769911600076,7.96064594,105.14,105.09,4.24637689]
[1769911600372,7.96064594,105.14,105.1,13.76112474]
[1769911600884,4.47535045,105.12,105.09,9.51521062]
[1769911601071,7.96064594,105.12,105.09,13.76158751]
[1769911602572,4.34883961,105.11,105.09,9.51521062]
[1769911603078,3.48529549,105.12,105.09,9.51521062]
[1769911603275,7.8341351,105.12,105.09,4.24565206]
[1769911606486,17.34760974,105.12,105.09,4.24565206]
[1769911606668,3.48529549,105.12,105.09,13.76123761]
[1769911606868,12.99686481,105.14,105.1,4.24565206]
[1769911607085,3.48529549,105.14,105.1,4.24565206]
[1769911607286,17.44479536,105.15,105.1,4.24565206]
[1769911607478,17.44479536,105.15,105.11,4.24565206]
[1769911608274,17.44479536,105.15,105.11,13.7593374]
[1769911608587,0.1,105.15,105.12,4.24565206]
[1769911609186,13.93735128,105.17,105.14,4.24565206]
[1769911609384,6.10321618,105.17,105.14,4.24565206]
[1769911611675,7.8341351,105.16,105.13,4.24565206]
[1769911611997,7.8341351,105.16,105.12,4.24565206]
[1769911611998,3.32367401,105.16,105.12,4.24565206]
[1769911612175,3.48529549,105.16,105.12,4.24565206]
[1769911612576,3.48529549,105.15,105.12,4.24565206]
[1769911613788,12.99617107,105.15,105.12,4.24565206]
[1769911614200,16.38507751,105.15,105.12,4.24565206]
[1769911616996,3.38890644,105.14,105.1,13.7600689]
[1769911617204,6.06582888,105.14,105.1,13.7600689]
[1769911617496,4.44908278,105.14,105.1,13.7600689]
[1769911617798,9.51087558,105.15,105.11,4.24565206]
[1769911618102,3.48529549,105.14,105.11,4.24565206]
[1769911618474,3.48529549,105.13,105.09,13.99853755]
[1769911619384,9.51133891,105.14,105.1,4.48288431]
[1769911619700,13.02985963,105.15,105.1,4.48288431]
[1769911619879,0.03388906,105.14,105.1,4.48288431]
[1769911621293,3.51918455,105.14,105.1,4.48288431]
[1769911621689,3.51918455,105.13,105.1,4.48288431]
[1769911623486,13.03143827,105.13,105.1,4.48288431]
[1769911623705,12.52883934,105.13,105.1,4.48288431]
[1769911624306,12.52883934,105.13,105.09,14.01548208]
[1769911624488,12.52883934,105.13,105.09,4.49982884]
[1769911624683,12.52883934,105.13,105.09,14.01540669]
[1769911625904,12.52883934,105.13,105.1,4.49982884]
[1769911627012,12.52883934,105.13,105.09,4.49982884]
[1769911628304,12.52883934,105.13,105.09,14.01506324]
[1769911630709,3.48269656,105.13,105.1,4.49982884]
[1769911631596,12.99475272,105.13,105.1,4.49982884]
[1769911632711,12.99475272,105.13,105.09,14.01511999]
[1769911632888,12.99475272,105.13,105.1,4.49982884]
[1769911633289,3.48269656,105.13,105.1,4.49982884]
[1769911634310,12.9948818,105.13,105.1,4.49982884]
[1769911634537,3.48269656,105.11,105.05,14.01883763]
[1769911634814,3.48269656,105.09,105.05,14.01883763]
[1769911635001,3.48269656,105.09,105.06,4.49982884]
[1769911638016,33.28894805,105.14,105.07,4.49982884]
[1769911638221,3.48269656,105.1,105.07,4.49982884]
[1769911639335,12.99802088,105.1,105.07,4.49982884]
[1769911639522,3.48269656,105.09,105.07,4.49982884]
[1769911641234,3.48269656,105.08,105.04,4.49982884]
[1769911641537,3.48269656,105.06,105.04,4.49982884]
[1769911642638,3.48269656,105.07,105.04,4.49982884]
[1769911646243,3.48269656,105.08,105.05,4.49982884]
[1769911646421,9.5159998,105.09,105.05,4.49982884]
[1769911647145,9.5159998,105.09,105.06,4.49982884]
[1769911649123,3.48269656,105.09,105.06,4.49982884]
[1769911650223,12.99842815,105.09,105.06,4.49982884]
[1769911652430,3.48269656,105.07,105.04,4.60188484]
[1769911652635,3.48269656,105.06,105.04,4.60188484]
[1769911654329,13.00124553,105.06,105.04,0.102056]
[1769911655849,13.00124553,105.06,105.04,4.60188484]
[1769911656453,3.48269656,105.05,105.01,4.49982884]
[1769911656649,3.48269656,105.03,105.01,4.49982884]
[1769911657330,3.44820849,105.05,105.01,4.29002828]
[1769911657548,3.48269656,105.04,105.02,4.29002828]
[1769911658149,3.48269656,105.05,105.02,4.29002828]
[1769911658448,3.48269656,105.07,105.03,4.4825848]
[1769911658651,3.48269656,105.09,105.05,4.4825848]
[1769911658956,3.48269656,105.12,105.07,4.4825848]
[1769911660137,12.99645737,105.12,105.08,4.4825848]
[1769911661346,3.48269656,105.11,105.08,4.4825848]
[1769911662460,12.99654181,105.11,105.08,4.4825848]
[1769911667761,12.99654181,105.11,105.03,65.47527085]
[1769911667762,1.14140798,105.08,105.04,9.51991797]
[1769911667962,3.48269656,105.08,105.04,9.51991797]
[1769911668155,4.62410454,105.09,105.04,9.51991797]
[1769911668862,14.14061,105.09,105.04,9.51991797]
[1769911669255,3.48269656,105.08,105.04,9.51991797]
[1769911669762,3.48269656,105.08,105.05,4.44910895]
[1769911669958,14.14061,105.09,105.05,4.44910895]
[1769911670666,12.99944494,105.08,105.05,4.44910895]
[1769911672864,3.48269656,105.07,105.05,4.44910895]
[1769911673065,4.62410454,105.07,105.03,4.44910895]
[1769911673369,3.48269656,105.06,105.03,4.44910895]
[1769911674371,13.00147174,105.06,105.03,4.44910895]
[1769911680074,3.48269656,105.04,105.02,4.44910895]
[1769911680276,3.48269656,105.05,105.02,4.44910895]
[1769911680471,13.00147174,105.06,105.02,4.44910895]
[1769911681688,3.48269656,105.06,105.02,4.44910895]
[1769911682272,3.48269656,105.06,105.04,4.44910895]
[1769911682486,4.62410454,105.09,105.05,4.44910895]
[1769911683553,10.65746646,105.09,105.06,4.44910895]
[1769911683757,3.48269656,105.1,105.06,4.44910895]
[1769911683957,10.6556793,105.11,105.06,4.44910895]
[1769911684154,3.48269656,105.1,105.06,4.44910895]
[1769911684386,12.99696788,105.11,105.06,4.44910895]
[1769911684760,3.48269656,105.1,105.06,4.44910895]
[1769911685582,12.99911928,105.1,105.06,9.51822481]
[1769911685783,12.99911928,105.1,105.07,4.44910895]
[1769911686684,5.83373293,105.09,105.02,50.24330614]
[1769911686892,5.83373293,105.08,105.02,27.28766975]
[1769911687067,3.48436361,105.09,105.06,9.5179177]
[1769911687268,3.5078573,105.1,105.06,9.5179177]
[1769911687982,13.02273752,105.1,105.06,9.5179177]
[1769911688783,13.02273752,105.1,105.07,4.16239688]
[1769911690165,12.99924383,105.1,105.07,4.16239688]
[1769911690367,12.99859846,105.11,105.08,4.16239688]
[1769911691573,9.51423485,105.11,105.08,4.16239688]
[1769911693086,168.37527085,105.15,105.08,4.16239688]
[1769911693087,3.48436361,105.13,105.09,4.16239688]
[1769911693388,9.51242529,105.13,105.09,4.16239688]
[1769911694383,9.51242529,105.13,105.1,4.16239688]
[1769911694886,12.9967889,105.13,105.1,4.16239688]
[1769911695991,9.51242529,105.13,105.1,4.16239688]
[1769911699075,11.86179461,105.13,105.1,4.16239688]
[1769911700594,15.34615822,105.13,105.1,4.16239688]
[1769911701095,15.20114856,105.13,105.1,4.16239688]
[1769911702078,12.78389621,105.13,105.1,4.16239688]
[1769911705104,5.83373293,105.14,105.1,4.16239688]
[1769911706306,5.83373293,105.14,105.1,13.67695937]
[1769911707098,5.83373293,105.14,105.11,4.16239688]
[1769911708100,6.10321618,105.17,105.14,4.16239688]
[1769911708397,1e-08,105.17,105.16,9.50931913]
[1769911709707,1e-08,105.17,105.15,13.67236881]
[1769911711098,1e-08,105.17,105.16,4.16239688]
[1769911711299,0.1,105.19,105.17,4.16239688]
[1769911712403,0.1,105.22,105.19,4.16239688]
[1769911712609,2.54836932,105.23,105.2,4.16239688]
[1769911712610,0.1,105.23,105.2,4.16239688]
[1769911713308,6.00891898,105.24,105.21,4.16239688]
[1769911713515,5.93273293,105.25,105.21,4.16239688]
[1769911713516,3.48436361,105.25,105.21,4.48763449]
[1769911713688,3.48436361,105.26,105.21,4.48763449]
[1769911713894,14.97786962,105.31,105.23,4.48763449]
[1769911714200,14.97786962,105.31,105.22,3.48436361]
[1769911714201,3.48436361,105.29,105.25,4.48763449]
[1769911714501,3.48436361,105.3,105.27,4.48763449]
[1769911715510,3.48436361,105.28,105.25,13.9885075]
[1769911715697,3.50884731,105.28,105.24,13.98939704]
[1769911717208,3.48436361,105.28,105.25,4.48763449]
[1769911717413,3.50884731,105.29,105.25,4.48763449]
[1769911717797,0.0244837,105.3,105.25,4.48763449]
[1769911718000,3.50884731,105.3,105.25,4.48763449]
[1769911718317,3.48436361,105.29,105.25,4.48763449]
[1769911719617,3.48436361,105.29,105.26,9.500285]
[1769911719916,3.48436361,105.29,105.26,13.98791949]
[1769911721314,3.50884731,105.3,105.26,13.98791949]
[1769911721621,3.50884731,105.3,105.27,4.48763449]
[1769911721918,3.50884731,105.3,105.27,13.98679772]
[1769911722617,6.2970161,105.31,105.28,4.48763449]
[1769911722917,3.50884731,105.33,105.29,4.48763449]
[1769911723505,106.18436361,105.36,105.3,4.48763449]
[1769911723506,3.48436361,105.34,105.3,4.48763449]
[1769911723707,3.48436361,105.35,105.32,4.48763449]
[1769911723928,3.48436361,105.36,105.32,4.48763449]
[1769911724823,3.50884731,105.37,105.32,4.48763449]
[1769911725620,5.94441259,105.39,105.32,4.48763449]
[1769911725823,3.48436361,105.37,105.34,13.98070454]
[1769911726704,3.50884731,105.38,105.34,13.98070454]
[1769911726904,3.50884731,105.38,105.34,37.71337968]
[1769911727313,0.0244837,105.37,105.33,13.9813071]
[1769911727606,9.28641832,105.37,105.34,4.48763449]
[1769911727815,9.31090202,105.36,105.33,9.49367261]
[1769911728019,9.28641832,105.35,105.33,9.49367261]
[1769911728401,9.31090202,105.36,105.33,9.49367261]
[1769911728924,9.31090202,105.38,105.34,4.48763449]
[1769911729236,15.20634721,105.39,105.34,4.48763449]
[1769911729604,9.28641832,105.4,105.36,4.48763449]
[1769911729807,9.28641832,105.4,105.37,9.49036727]
[1769911730018,9.28641832,105.4,105.37,13.97800176]
[1769911730217,9.28641832,105.42,105.38,4.48763449]
[1769911730410,9.28641832,105.43,105.39,4.48763449]
[1769911731451,10.49859776,105.4,105.37,9.49036727]
[1769911731616,9.28641832,105.39,105.36,9.49103101]
[1769911732116,9.28641832,105.39,105.35,23.7291363]
[1769911733231,9.28641832,105.39,105.35,33.22130526]
[1769911733433,9.28641832,105.4,105.36,4.21167908]
[1769911733631,10.49859776,105.41,105.36,4.21167908]
[1769911734931,32.30832068,105.47,105.38,4.21167908]
[1769911734932,1.21217944,105.43,105.38,4.21167908]
[1769911735115,9.28641832,105.43,105.4,4.21167908]
[1769911735429,9.28641832,105.44,105.4,4.21167908]
[1769911735819,9.28641832,105.43,105.4,4.21167908]
[1769911736216,9.28641832,105.43,105.4,13.69870365]
[1769911736527,9.28641832,105.44,105.4,13.69870365]
[1769911736719,9.28641832,105.43,105.4,13.69870365]
[1769911737731,9.28641832,105.42,105.39,9.48817599]
[1769911738029,10.49859776,105.41,105.38,9.48911096]
[1769911739931,9.28641832,105.41,105.38,13.70079004]
[1769911740830,1.21217944,105.44,105.39,4.21167908]
[1769911741019,9.28641832,105.43,105.39,4.21167908]
[1769911741333,9.28641832,105.43,105.4,13.69934511]
[1769911741530,10.69448287,105.46,105.41,4.21167908]
[1769911741716,9.28641832,105.44,105.41,4.21167908]
[1769911741918,9.28641832,105.43,105.41,4.21167908]
[1769911742116,9.28641832,105.42,105.39,13.70001544]
[1769911743044,9.28641832,105.43,105.4,4.21167908]
[1769911743335,9.28641832,105.43,105.4,13.69913592]
[1769911743539,9.28641832,105.43,105.4,9.48745684]
[1769911743757,9.28641832,105.43,105.4,13.69913592]
[1769911744532,1.21217944,105.45,105.41,4.21167908]
[1769911744846,9.28641832,105.44,105.41,4.21167908]
[1769911745541,9.2735973,105.44,105.41,13.69776286]
[1769911745740,9.2735973,105.44,105.39,6.69052524]
[1769911746241,9.2735973,105.42,105.37,9.2735973]
[1769911746449,13.62711343,105.44,105.38,9.2735973]
[1769911746643,13.62711343,105.44,105.39,9.2735973]
[1769911747129,13.33927696,105.46,105.41,18.76036326]
[1769911747544,13.33927696,105.46,105.41,42.47727816]
[1769911747722,13.33927696,105.46,105.43,9.48496632]
[1769911748640,9.2735973,105.45,105.42,13.66901788]
[1769911748839,13.33927696,105.43,105.4,9.48710801]
[1769911749640,4.06567966,105.45,105.41,4.18341927]
[1769911749847,4.06567966,105.45,105.42,13.6691599]
[1769911750043,13.33927696,105.46,105.42,37.38382504]
[1769911750245,0.1,105.48,105.45,4.18341927]
[1769911750623,1e-08,105.48,105.45,4.18341927]
[1769911750830,1e-08,105.48,105.46,4.18341927]
[1769911751433,1e-08,105.48,105.44,4.18341927]
[1769911751639,9.2735973,105.47,105.44,4.18341927]
[1769911751944,13.43927696,105.51,105.46,4.18341927]
[1769911752341,9.2735973,105.5,105.46,4.18341927]
[1769911753147,9.2735973,105.5,105.45,42.46468311]
[1769911753148,9.2735973,105.48,105.45,9.48316737]
[1769911753344,13.33927696,105.48,105.44,13.66719701]
[1769911753737,13.33927696,105.48,105.44,37.37736392]
[1769911753952,13.33927696,105.49,105.45,4.18341927]
[1769911754637,13.33927696,105.47,105.43,13.66798372]
[1769911754848,9.2735973,105.46,105.43,13.66798372]
[1769911755554,4.06567966,105.47,105.44,9.48403828]
[1769911756153,13.54620675,105.48,105.44,13.66745755]
[1769911756451,13.54620675,105.48,105.45,4.18341927]
[1769911756663,13.54620675,105.48,105.44,13.66745755]
[1769911759633,13.5455349,105.49,105.45,4.18341927]
[1769911759842,4.06567966,105.49,105.45,4.18341927]
[1769911760551,4.06567966,105.48,105.43,13.66805767]
[1769911760956,4.06567966,105.48,105.44,4.18341927]
[1769911761160,4.06567966,105.48,105.44,13.66730743]
[1769911761364,13.54624099,105.48,105.44,13.66730743]
[1769911761645,4.06567966,105.47,105.44,9.48388816]
[1769911762364,4.06567966,105.47,105.43,13.66794885]
[1769911763964,4.06567966,105.47,105.44,9.48406676]
[1769911766168,4.06567966,105.47,105.43,13.66801883]
[1769911767375,4.06567966,105.47,105.36,47.1804529]
[1769911767376,4.06567966,105.46,105.4,4.18341927]
[1769911767558,4.06567966,105.46,105.41,4.18341927]
[1769911767746,4.06567966,105.44,105.41,4.18341927]
[1769911767947,4.06567966,105.44,105.4,9.48719766]
[1769911768148,4.06567966,105.44,105.4,13.67061693]
[1769911768348,4.06567966,105.44,105.4,4.18341927]
[1769911769761,13.55034174,105.44,105.4,4.18341927]
[1769911770065,4.06567966,105.43,105.4,4.18341927]
[1769911770258,4.06567966,105.43,105.39,4.18341927]
[1769911770444,4.06567966,105.43,105.39,13.67196645]
[1769911771963,13.55087194,105.43,105.4,4.18341927]
[1769911775068,4.06567966,105.46,105.41,4.18341927]
[1769911775449,4.06567966,105.45,105.41,4.18341927]
[1769911777154,13.72964944,105.46,105.42,4.16107296]
[1769911778364,9.48226815,105.46,105.42,4.16107296]
[1769911778558,4.24738129,105.45,105.41,13.64709088]
[1769911779258,13.73069242,105.45,105.41,13.64709088]
[1769911779652,4.24738129,105.45,105.42,4.16107296]
[1769911779873,9.48271701,105.46,105.42,4.16107296]
[1769911780248,13.7300983,105.46,105.42,4.16107296]
[1769911780571,9.48271701,105.46,105.42,4.16107296]
[1769911781473,13.7300983,105.46,105.42,4.16107296]
[1769911783996,4.08356707,105.45,105.42,4.16107296]
[1769911785064,4.08356707,105.46,105.43,4.13328428]
[1769911786275,13.56645389,105.46,105.43,4.13328428]
[1769911788085,13.56538638,105.47,105.43,4.13328428]
[1769911788278,4.08356707,105.46,105.43,4.13328428]
[1769911789285,13.5640373,105.48,105.44,4.13328428]
[1769911789884,4.08356707,105.47,105.42,13.61855458]
[1769911790671,4.08356707,105.46,105.43,4.13328428]
[1769911792196,4.08356707,105.48,105.43,4.13328428]
[1769911793375,4.08356707,105.48,105.45,4.13328428]
[1769911794391,4.18356707,105.51,105.45,4.13328428]
[1769911794598,4.18356707,105.51,105.46,4.13328428]
[1769911795479,4.18356707,105.51,105.48,4.13328428]
[1769911796894,0.1,105.51,105.48,4.13328428]
[1769911797079,0.3264321,105.52,105.49,4.13328428]
[1769911797388,0.3264321,105.52,105.5,9.47867298]
[1769911797595,4.08356707,105.56,105.51,4.13328428]
[1769911798587,4.08356707,105.56,105.52,4.13328428]
[1769911798795,4.08356707,105.58,105.52,7.5948153]
[1769911799005,4.08356707,105.58,105.53,4.13328428]
[1769911799497,4.08356707,105.58,105.53,13.60858637]
[1769911799698,4.08356707,105.58,105.54,4.13328428]
[1769911800379,0.1,105.59,105.54,4.13328428]
[1769911800581,4.18356707,105.59,105.54,4.13328428]
[1769911800792,4.08356707,105.58,105.53,13.60858637]
[1769911801404,4.08356707,105.58,105.52,13.60994504]
[1769911802193,4.08356707,105.57,105.52,13.60994504]
[1769911802906,4.08356707,105.57,105.53,4.13328428]
[1769911803794,4.08356707,105.57,105.53,3.94368428]
[1769911804404,4.08356707,105.57,105.54,9.47508053]
[1769911806099,4.08356707,105.57,105.54,13.60836481]
[1769911806292,9.57075031,105.59,105.55,4.13328428]
[1769911806293,13.65431738,105.59,105.55,4.13328428]
[1769911806694,4.18356707,105.59,105.55,4.13328428]
[1769911806996,0.1,105.59,105.55,4.13328428]
[1769911807898,0.1,105.6,105.57,4.11208634]
[1769911808407,4.29177799,105.63,105.6,4.11208634]
[1769911808598,106.99177799,105.64,105.6,4.11208634]
[1769911808978,4.29177799,105.64,105.6,4.11208634]
[1769911809410,4.29177799,105.66,105.6,4.11208634]
[1769911809900,4.29177799,105.66,105.61,4.11208634]
[1769911810090,4.29177799,105.67,105.61,4.11208634]
[1769911810293,4.29177799,105.69,105.63,4.11208634]
[1769911810499,4.29177799,105.71,105.65,4.11208634]
[1769911811105,4.29177799,105.71,105.63,4.11208634]
[1769911811516,4.29177799,105.71,105.64,4.11208634]
[1769911812300,4.29177799,105.71,105.66,4.11208634]
[1769911812799,13.75173648,105.71,105.66,4.11208634]
[1769911813006,4.29177799,105.7,105.66,4.11208634]
[1769911813601,4.29177799,105.71,105.66,4.11208634]
[1769911813990,9.45930115,105.72,105.66,4.11208634]
[1769911813991,4.29177799,105.72,105.66,4.11208634]
[1769911814185,4.61821009,105.73,105.67,4.11208634]
[1769911814494,4.61821009,105.73,105.69,4.11208634]
[1769911815186,4.61821009,105.73,105.68,13.57461472]
[1769911815508,4.11821009,105.73,105.69,4.11208634]
[1769911816006,9.45545726,105.76,105.69,4.11208634]
[1769911816499,9.45447669,105.77,105.71,4.11208634]
[1769911816904,13.72910244,105.78,105.71,4.11208634]
[1769911817404,4.29177799,105.77,105.71,4.11208634]
[1769911818384,4.29177799,105.77,105.72,13.5710345]
[1769911819994,4.29177799,105.76,105.71,13.57192777]
[1769911820193,4.29177799,105.79,105.72,4.11208634]
[1769911820395,4.29177799,105.78,105.73,13.57013987]
[1769911821010,4.29177799,105.78,105.74,4.11208634]
[1769911821526,4.29177799,105.79,105.74,4.11208634]
[1769911822604,4.29177799,105.79,105.75,13.56835111]
[1769911822895,4.29177799,105.78,105.74,4.11208634]
[1769911823114,4.29177799,105.78,105.72,13.57050808]
[1769911823314,4.29177799,105.78,105.73,13.57006555]
[1769911823606,4.29177799,105.78,105.73,4.11208634]
[1769911823907,27.90375178,105.81,105.75,4.11208634]
[1769911823908,13.74390911,105.8,105.75,4.11208634]
[1769911824107,4.29177799,105.8,105.75,4.11208634]
[1769911824708,4.29177799,105.8,105.76,13.56745699]
[1769911825714,4.29177799,105.79,105.75,9.45590724]
[1769911826411,4.29177799,105.79,105.75,13.56799358]
[1769911826613,4.29177799,105.8,105.76,13.56679421]
[1769911827904,9.45112597,105.81,105.77,4.11208634]
[1769911828104,9.44858055,105.84,105.77,4.11208634]
[1769911828511,4.29177799,105.84,105.77,4.11208634]
[1769911829710,4.29177799,105.87,105.8,4.11208634]
[1769911829905,4.29177799,105.87,105.81,4.11208634]
[1769911830106,4.29177799,105.86,105.81,4.11208634]
[1769911830299,4.29177799,105.86,105.81,9.45084097]
[1769911830616,4.29177799,105.86,105.81,9.45077685]
[1769911830831,4.29177799,105.86,105.81,13.56286319]
[1769911831010,4.29177799,105.86,105.82,4.11208634]
[1769911831418,4.29177799,105.87,105.82,4.11208634]
[1769911831712,4.29177799,105.84,105.78,4.11208634]
[1769911832020,13.74035951,105.84,105.79,9.45256918]
[1769911832213,4.29177799,105.86,105.8,4.11208634]
[1769911832411,4.39177799,105.88,105.8,13.36383187]
[1769911832717,10.19758056,105.92,105.85,4.11208634]
[1769911832920,4.29177799,105.92,105.87,4.11208634]
[1769911833123,4.61821009,105.94,105.89,4.11208634]
[1769911833617,4.29177799,105.96,105.85,4.11208634]
[1769911833815,4.29177799,105.96,105.86,4.11208634]
[1769911834119,4.29177799,105.94,105.86,13.55776942]